[Event "Titled Tuesday Blitz October 25 Late 2022"]
[White "Djokic, Mihailo"]
[Black "Kirillov, Dmitry"]
[WhiteFideId "976440"]
[BlackFideId "34180572"]
[WhiteElo "2315"]
[BlackElo "2095"]
[Result "1-0"]
[Round "03"]
[TimeControl "180+1"]
[Date "2022.10.26"]
[WhiteClock "0:00:03"]
[BlackClock "0:00:04"]

1. e4 {[%clk 0:03:00]}  c6 {[%clk 0:02:58]} 2. d4 {[%clk 0:03:00]}  d5 {[%clk 0:02:59]} 3. e5 {[%clk 0:03:01]}  c5 {[%clk 0:02:59]} 4. dxc5 {[%clk 0:03:01]}  Nc6 {[%clk 0:02:59]} 5. Nf3 {[%clk 0:03:01]}  Bg4 {[%clk 0:02:59]} 6. c3 {[%clk 0:03:01]}  e6 {[%clk 0:02:58]} 7. Bb5 {[%clk 0:03:02]}  Bxf3 {[%clk 0:02:53]} 8. Qxf3 {[%clk 0:02:58]}  Bxc5 {[%clk 0:02:53]} 9. Qg3 {[%clk 0:02:44]}  Ne7 {[%clk 0:02:38]} 10. Bxc6+ {[%clk 0:02:39]}  bxc6 {[%clk 0:02:33]} 11. b4 {[%clk 0:02:37]}  Nf5 {[%clk 0:02:24]} 12. Qg4 {[%clk 0:02:23]}  Bb6 {[%clk 0:02:19]} 13. Bg5 {[%clk 0:02:20]}  Qc7 {[%clk 0:02:01]} 14. Bf4 {[%clk 0:02:12]}  a5 {[%clk 0:01:52]} 15. bxa5 {[%clk 0:02:01]}  Rxa5 {[%clk 0:01:33]} 16. O-O {[%clk 0:01:57]}  Ra4 {[%clk 0:01:31]} 17. h3 {[%clk 0:01:02]}  h5 {[%clk 0:00:57]} 18. Qg5 {[%clk 0:00:47]}  Qd7 {[%clk 0:00:23]} 19. Bh2 {[%clk 0:00:36]}  Rh6 {[%clk 0:00:15]} 20. Kh1 {[%clk 0:00:20]}  d4 {[%clk 0:00:09]} 21. Rd1 {[%clk 0:00:13]}  Qd5 {[%clk 0:00:06]} 22. Qf4 {[%clk 0:00:06]}  Rg6 {[%clk 0:00:06]} 23. f3 {[%clk 0:00:03]}  Rxa2 {[%clk 0:00:04]} 24. Rxa2 {[%clk 0:00:03]}  Qxa2 {[%clk 0:00:05]} 25. Nd2 {[%clk 0:00:02]}  dxc3 {[%clk 0:00:05]} 26. Qb4 {[%clk 0:00:01]}  cxd2 {[%clk 0:00:04]} 27. Qxb6 {[%clk 0:00:01]}  Ne7 {[%clk 0:00:02]} 28. Qb8+ {[%clk 0:00:01]}  Kd7 {[%clk 0:00:02]} 29. Qb7+ {[%clk 0:00:02]}  Ke8 {[%clk 0:00:03]} 30. Qb8+ {[%clk 0:00:02]}  Kd7 {[%clk 0:00:04]} 31. Qd6+ {[%clk 0:00:03]}  Kc8 {[%clk 0:00:04]} 32. Rxd2 {[%clk 0:00:03]}  Qb1+ {[%clk 0:00:04]} 33. Rd1 {[%clk 0:00:04]}  Qb7 {[%clk 0:00:04]} 34. Qd8# {[%clk 0:00:03]} 1-0


[Site "https://www.chess.com"]

[Event "Titled Tuesday Blitz October 25 Late 2022"]
[White "Dzierzak, Radoslaw"]
[Black "Osmak, Yuliia"]
[WhiteFideId "1161407"]
[BlackFideId "14101602"]
[WhiteElo "2111"]
[BlackElo "2328"]
[Result "1-0"]
[Round "03"]
[TimeControl "180+1"]
[Date "2022.10.26"]
[WhiteClock "0:00:07"]
[BlackClock "0:00:02"]

1. e4 {[%clk 0:03:00]}  c5 {[%clk 0:02:59]} 2. Nf3 {[%clk 0:03:01]}  d6 {[%clk 0:02:59]} 3. d4 {[%clk 0:03:01]}  cxd4 {[%clk 0:03:00]} 4. Nxd4 {[%clk 0:03:02]}  Nf6 {[%clk 0:03:00]} 5. Nc3 {[%clk 0:03:03]}  a6 {[%clk 0:03:00]} 6. g3 {[%clk 0:03:03]}  e6 {[%clk 0:03:00]} 7. Bg2 {[%clk 0:03:04]}  Be7 {[%clk 0:02:59]} 8. O-O {[%clk 0:03:04]}  O-O {[%clk 0:02:58]} 9. a4 {[%clk 0:03:04]}  Nc6 {[%clk 0:02:58]} 10. Nb3 {[%clk 0:03:04]}  Bd7 {[%clk 0:02:49]} 11. f4 {[%clk 0:03:03]}  Rc8 {[%clk 0:02:47]} 12. a5 {[%clk 0:03:01]}  Nb4 {[%clk 0:02:26]} 13. Be3 {[%clk 0:03:00]}  Bc6 {[%clk 0:02:24]} 14. Bb6 {[%clk 0:02:51]}  Qd7 {[%clk 0:02:19]} 15. Nd4 {[%clk 0:02:44]}  d5 {[%clk 0:02:16]} 16. Nxc6 {[%clk 0:02:40]}  bxc6 {[%clk 0:02:06]} 17. e5 {[%clk 0:02:23]}  Ne8 {[%clk 0:02:02]} 18. Bf2 {[%clk 0:02:08]}  c5 {[%clk 0:01:57]} 19. Na4 {[%clk 0:01:51]}  Qb5 {[%clk 0:01:46]} 20. c3 {[%clk 0:01:46]}  Nc6 {[%clk 0:01:44]} 21. Nb6 {[%clk 0:01:27]}  Rd8 {[%clk 0:01:43]} 22. Qa4 {[%clk 0:01:19]}  Nc7 {[%clk 0:01:37]} 23. Rfd1 {[%clk 0:01:03]}  Na7 {[%clk 0:01:14]} 24. b3 {[%clk 0:00:51]}  Qxa4 {[%clk 0:01:08]} 25. Nxa4 {[%clk 0:00:49]}  Nab5 {[%clk 0:01:01]} 26. c4 {[%clk 0:00:40]}  dxc4 {[%clk 0:00:51]} 27. bxc4 {[%clk 0:00:37]}  Nd4 {[%clk 0:00:51]} 28. Rab1 {[%clk 0:00:32]}  Rb8 {[%clk 0:00:43]} 29. Rb6 {[%clk 0:00:29]}  Rfd8 {[%clk 0:00:35]} 30. Kf1 {[%clk 0:00:28]}  Kf8 {[%clk 0:00:30]} 31. Rdb1 {[%clk 0:00:23]}  Rbc8 {[%clk 0:00:24]} 32. Rb7 {[%clk 0:00:20]}  Ne8 {[%clk 0:00:21]} 33. Nb6 {[%clk 0:00:19]}  Rc7 {[%clk 0:00:20]} 34. Rxc7 {[%clk 0:00:18]}  Nxc7 {[%clk 0:00:21]} 35. Na4 {[%clk 0:00:19]}  Ne8 {[%clk 0:00:19]} 36. Rb6 {[%clk 0:00:18]}  Nc7 {[%clk 0:00:17]} 37. Rb7 {[%clk 0:00:18]}  Rc8 {[%clk 0:00:16]} 38. Nb6 {[%clk 0:00:18]}  Re8 {[%clk 0:00:10]} 39. Bxd4 {[%clk 0:00:18]}  cxd4 {[%clk 0:00:08]} 40. Rxc7 {[%clk 0:00:18]}  Bb4 {[%clk 0:00:04]} 41. Rd7 {[%clk 0:00:17]}  Bxa5 {[%clk 0:00:04]} 42. Na4 {[%clk 0:00:16]}  Rb8 {[%clk 0:00:03]} 43. Rxd4 {[%clk 0:00:15]}  Rb1+ {[%clk 0:00:03]} 44. Kf2 {[%clk 0:00:14]}  Ra1 {[%clk 0:00:04]} 45. c5 {[%clk 0:00:11]}  Ke7 {[%clk 0:00:03]} 46. Rc4 {[%clk 0:00:11]}  Bc7 {[%clk 0:00:01]} 47. c6 {[%clk 0:00:11]}  a5 {[%clk 0:00:02]} 48. Bf3 {[%clk 0:00:09]}  Ra2+ {[%clk 0:00:02]} 49. Be2 {[%clk 0:00:09]}  f5 {[%clk 0:00:03]} 50. exf6+ {[%clk 0:00:08]}  gxf6 {[%clk 0:00:04]} 51. Kf3 {[%clk 0:00:09]}  Ra3+ {[%clk 0:00:03]} 52. Kf2 {[%clk 0:00:08]}  Ra2 {[%clk 0:00:03]} 53. Nc5 {[%clk 0:00:07]}  Kd6 {[%clk 0:00:02]} 54. Ne4+ {[%clk 0:00:07]}  Kd5 {[%clk 0:00:03]} 55. Nc3+ {[%clk 0:00:06]}  Kd6 {[%clk 0:00:02]} 56. Nxa2 {[%clk 0:00:07]} 1-0


[Site "https://www.chess.com"]

[Event "Titled Tuesday Blitz October 25 Late 2022"]
[White "Ezat, Mohamed"]
[Black "Vovk, Orest"]
[WhiteFideId "10600906"]
[BlackFideId "14113490"]
[WhiteElo "2386"]
[BlackElo "2215"]
[Result "0-1"]
[Round "03"]
[TimeControl "180+1"]
[Date "2022.10.26"]
[WhiteClock "0:01:51"]
[BlackClock "0:01:16"]

1. d4 {[%clk 0:03:00]}  e5 {[%clk 0:02:43]} 2. dxe5 {[%clk 0:02:59]}  Nc6 {[%clk 0:02:43]} 3. Nf3 {[%clk 0:02:58]}  Qe7 {[%clk 0:02:44]} 4. e4 {[%clk 0:02:56]}  Nxe5 {[%clk 0:02:42]} 5. Be2 {[%clk 0:02:57]}  Nxf3+ {[%clk 0:02:42]} 6. Bxf3 {[%clk 0:02:57]}  Nf6 {[%clk 0:02:42]} 7. O-O {[%clk 0:02:57]}  Qe5 {[%clk 0:02:42]} 8. Nc3 {[%clk 0:02:56]}  Bc5 {[%clk 0:02:41]} 9. g3 {[%clk 0:02:52]}  d6 {[%clk 0:02:37]} 10. Bf4 {[%clk 0:02:52]}  Qd4 {[%clk 0:02:37]} 11. e5 {[%clk 0:02:50]}  Qxd1 {[%clk 0:02:34]} 12. Raxd1 {[%clk 0:02:49]}  dxe5 {[%clk 0:02:34]} 13. Bxe5 {[%clk 0:02:49]}  c6 {[%clk 0:02:32]} 14. Bxf6 {[%clk 0:02:42]}  gxf6 {[%clk 0:02:31]} 15. Rfe1+ {[%clk 0:02:42]}  Be6 {[%clk 0:02:21]} 16. Bg4 {[%clk 0:02:42]}  Ke7 {[%clk 0:02:18]} 17. Ne4 {[%clk 0:02:39]}  Bb6 {[%clk 0:02:11]} 18. Nd6 {[%clk 0:02:33]}  Rhd8 {[%clk 0:01:58]} 19. Nxf7 {[%clk 0:02:20]}  Rxd1 {[%clk 0:01:56]} 20. Bxd1 {[%clk 0:02:20]}  Kxf7 {[%clk 0:01:55]} 21. Bh5+ {[%clk 0:02:20]}  Ke7 {[%clk 0:01:50]} 22. Bg4 {[%clk 0:02:20]}  f5 {[%clk 0:01:49]} 23. Bxf5 {[%clk 0:02:18]}  Kf6 {[%clk 0:01:49]} 24. Rxe6+ {[%clk 0:02:03]}  Kxf5 {[%clk 0:01:48]} 25. Re7 {[%clk 0:02:03]}  Rd8 {[%clk 0:01:44]} 26. Rxh7 {[%clk 0:01:58]}  Rd2 {[%clk 0:01:43]} 27. Rf7+ {[%clk 0:01:58]}  Ke6 {[%clk 0:01:43]} 28. Rf3 {[%clk 0:01:57]}  Rxc2 {[%clk 0:01:42]} 29. h4 {[%clk 0:01:55]}  Rxb2 {[%clk 0:01:42]} 30. h5 {[%clk 0:01:55]}  Rxa2 {[%clk 0:01:41]} 31. g4 {[%clk 0:01:55]}  Ra4 {[%clk 0:01:37]} 32. Rg3 {[%clk 0:01:54]}  Bc7 {[%clk 0:01:18]} 33. Re3+ {[%clk 0:01:51]}  Kf6 {[%clk 0:01:17]} 34. f3 {[%clk 0:01:51]}  Bb6 {[%clk 0:01:16]} 0-1


[Site "https://www.chess.com"]

[Event "Titled Tuesday Blitz October 25 Late 2022"]
[White "Fernandez De La Vara, Arnaldo"]
[Black "Winterberg, Lukas"]
[WhiteFideId "3518388"]
[BlackFideId "24622702"]
[WhiteElo "2387"]
[BlackElo "2349"]
[Result "1-0"]
[Round "03"]
[TimeControl "180+1"]
[Date "2022.10.26"]
[WhiteClock "0:00:31"]
[BlackClock "0:00:26"]

1. Nf3 {[%clk 0:03:00]}  Nf6 {[%clk 0:02:59]} 2. b3 {[%clk 0:03:01]}  g6 {[%clk 0:02:59]} 3. Bb2 {[%clk 0:03:01]}  Bg7 {[%clk 0:03:00]} 4. g3 {[%clk 0:03:01]}  O-O {[%clk 0:03:00]} 5. Bg2 {[%clk 0:03:02]}  d5 {[%clk 0:03:01]} 6. c4 {[%clk 0:03:02]}  c6 {[%clk 0:02:59]} 7. O-O {[%clk 0:03:02]}  Bf5 {[%clk 0:02:56]} 8. d3 {[%clk 0:02:58]}  a5 {[%clk 0:02:56]} 9. Nc3 {[%clk 0:02:52]}  Na6 {[%clk 0:02:45]} 10. Re1 {[%clk 0:02:37]}  Re8 {[%clk 0:02:40]} 11. h3 {[%clk 0:02:32]}  e5 {[%clk 0:02:38]} 12. cxd5 {[%clk 0:02:26]}  cxd5 {[%clk 0:02:36]} 13. e4 {[%clk 0:02:26]}  Bc8 {[%clk 0:02:20]} 14. exd5 {[%clk 0:02:16]}  Nd7 {[%clk 0:01:53]} 15. d4 {[%clk 0:02:12]}  exd4 {[%clk 0:01:43]} 16. Rxe8+ {[%clk 0:02:13]}  Qxe8 {[%clk 0:01:44]} 17. Nxd4 {[%clk 0:02:14]}  Ne5 {[%clk 0:01:39]} 18. Ndb5 {[%clk 0:02:08]}  Bf5 {[%clk 0:01:35]} 19. Nd6 {[%clk 0:02:02]}  Qd7 {[%clk 0:01:34]} 20. Nxf5 {[%clk 0:02:01]}  Qxf5 {[%clk 0:01:35]} 21. Qe2 {[%clk 0:01:41]}  Rd8 {[%clk 0:01:31]} 22. Re1 {[%clk 0:01:37]}  h5 {[%clk 0:01:26]} 23. Ne4 {[%clk 0:01:14]}  Nf3+ {[%clk 0:01:22]} 24. Bxf3 {[%clk 0:01:09]}  Bxb2 {[%clk 0:01:22]} 25. Qxb2 {[%clk 0:01:10]}  Qxf3 {[%clk 0:01:21]} 26. Nf6+ {[%clk 0:01:10]}  Kf8 {[%clk 0:01:21]} 27. d6 {[%clk 0:00:58]}  Nc5 {[%clk 0:00:42]} 28. d7 {[%clk 0:00:58]}  Ne6 {[%clk 0:00:42]} 29. Qe5 {[%clk 0:00:52]}  h4 {[%clk 0:00:39]} 30. Qd6+ {[%clk 0:00:30]}  Kg7 {[%clk 0:00:38]} 31. Rxe6 {[%clk 0:00:31]}  hxg3 {[%clk 0:00:35]} 32. fxg3 {[%clk 0:00:31]}  fxe6 {[%clk 0:00:28]} 33. Qe7+ {[%clk 0:00:31]}  Kh6 {[%clk 0:00:29]} 34. Ng4+ {[%clk 0:00:32]}  Kh5 {[%clk 0:00:26]} 35. Qh4# {[%clk 0:00:31]} 1-0


[Site "https://www.chess.com"]

[Event "Titled Tuesday Blitz October 25 Late 2022"]
[White "Florescu, Codrut-Constantin"]
[Black "Bordi, Kevin"]
[WhiteFideId "1202200"]
[BlackFideId "621862"]
[WhiteElo "2191"]
[BlackElo "2819"]
[Result "0-1"]
[Round "03"]
[TimeControl "180+1"]
[Date "2022.10.26"]
[WhiteClock "0:00:17"]
[BlackClock "0:00:35"]

1. e4 {[%clk 0:03:00]}  d5 {[%clk 0:03:00]} 2. exd5 {[%clk 0:03:00]}  Qxd5 {[%clk 0:03:01]} 3. d4 {[%clk 0:03:00]}  e5 {[%clk 0:03:00]} 4. Nf3 {[%clk 0:02:58]}  exd4 {[%clk 0:03:00]} 5. Qxd4 {[%clk 0:02:52]}  Nf6 {[%clk 0:02:59]} 6. Nc3 {[%clk 0:02:52]}  Qa5 {[%clk 0:02:59]} 7. Bf4 {[%clk 0:02:50]}  Nc6 {[%clk 0:02:57]} 8. Bb5 {[%clk 0:02:48]}  Be7 {[%clk 0:02:48]} 9. O-O {[%clk 0:02:39]}  O-O {[%clk 0:02:48]} 10. Bxc6 {[%clk 0:02:37]}  bxc6 {[%clk 0:02:49]} 11. Qe5 {[%clk 0:02:25]}  Qxe5 {[%clk 0:02:45]} 12. Nxe5 {[%clk 0:02:25]}  Bd6 {[%clk 0:02:44]} 13. Nd3 {[%clk 0:02:24]}  Bf5 {[%clk 0:02:42]} 14. Bg5 {[%clk 0:02:19]}  Nd5 {[%clk 0:02:38]} 15. Nxd5 {[%clk 0:02:18]}  cxd5 {[%clk 0:02:38]} 16. Bf4 {[%clk 0:02:18]}  Bxd3 {[%clk 0:01:42]} 17. Bxd6 {[%clk 0:02:17]}  Bxf1 {[%clk 0:01:40]} 18. Bxf8 {[%clk 0:02:17]}  Kxf8 {[%clk 0:01:41]} 19. Kxf1 {[%clk 0:02:16]}  Ke7 {[%clk 0:01:41]} 20. b4 {[%clk 0:02:14]}  Kd6 {[%clk 0:01:42]} 21. Ke2 {[%clk 0:02:13]}  Rb8 {[%clk 0:01:39]} 22. a3 {[%clk 0:02:11]}  c5 {[%clk 0:01:38]} 23. c3 {[%clk 0:02:10]}  a5 {[%clk 0:01:31]} 24. bxa5 {[%clk 0:02:08]}  Ra8 {[%clk 0:01:30]} 25. Kd3 {[%clk 0:02:06]}  Rxa5 {[%clk 0:01:31]} 26. a4 {[%clk 0:02:06]}  Kc6 {[%clk 0:01:27]} 27. c4 {[%clk 0:02:00]}  d4 {[%clk 0:01:26]} 28. g4 {[%clk 0:01:59]}  h6 {[%clk 0:01:22]} 29. h4 {[%clk 0:01:59]}  f6 {[%clk 0:01:20]} 30. h5 {[%clk 0:01:58]}  Kb6 {[%clk 0:01:19]} 31. Ke4 {[%clk 0:01:55]}  Ra7 {[%clk 0:01:18]} 32. Kd5 {[%clk 0:01:51]}  Rd7+ {[%clk 0:01:07]} 33. Ke6 {[%clk 0:01:51]}  Rd8 {[%clk 0:00:56]} 34. Ke7 {[%clk 0:01:49]}  Ra8 {[%clk 0:00:56]} 35. Kf7 {[%clk 0:01:29]}  Ra7+ {[%clk 0:00:55]} 36. Kg6 {[%clk 0:01:29]}  Ka5 {[%clk 0:00:50]} 37. Rb1 {[%clk 0:01:26]}  Rd7 {[%clk 0:00:50]} 38. Kf5 {[%clk 0:00:35]}  d3 {[%clk 0:00:47]} 39. Ke6 {[%clk 0:00:34]}  Rd4 {[%clk 0:00:47]} 40. f3 {[%clk 0:00:32]}  Kxa4 {[%clk 0:00:44]} 41. Kf7 {[%clk 0:00:31]}  d2 {[%clk 0:00:40]} 42. Rd1 {[%clk 0:00:28]}  Rd7+ {[%clk 0:00:39]} 43. Ke6 {[%clk 0:00:28]}  Rd4 {[%clk 0:00:39]} 44. Kf7 {[%clk 0:00:28]}  Kb3 {[%clk 0:00:39]} 45. Kxg7 {[%clk 0:00:27]}  Kxc4 {[%clk 0:00:39]} 46. Kxf6 {[%clk 0:00:20]}  Kd3 {[%clk 0:00:38]} 47. g5 {[%clk 0:00:18]}  hxg5 {[%clk 0:00:37]} 48. h6 {[%clk 0:00:18]}  Rh4 {[%clk 0:00:34]} 49. Kxg5 {[%clk 0:00:17]}  Rh2 {[%clk 0:00:35]} 50. f4 {[%clk 0:00:17]}  c4 {[%clk 0:00:35]} 51. f5 {[%clk 0:00:16]}  c3 {[%clk 0:00:36]} 52. f6 {[%clk 0:00:17]}  c2 {[%clk 0:00:36]} 53. f7 {[%clk 0:00:17]}  cxd1=Q {[%clk 0:00:34]} 54. f8=Q {[%clk 0:00:18]}  Qg1+ {[%clk 0:00:35]} 55. Kf6 {[%clk 0:00:17]}  Rf2+ {[%clk 0:00:35]} 0-1


[Site "https://www.chess.com"]

[Event "Titled Tuesday Blitz October 25 Late 2022"]
[White "Garagulya, Konstantin"]
[Black "Bjelobrk, Igor"]
[WhiteFideId "4128931"]
[BlackFideId "4300726"]
[WhiteElo "2329"]
[BlackElo "2335"]
[Result "0-1"]
[Round "03"]
[TimeControl "180+1"]
[Date "2022.10.26"]
[WhiteClock "0:00:02"]
[BlackClock "0:00:15"]

1. d4 {[%clk 0:02:52]}  Nf6 {[%clk 0:02:57]} 2. Nf3 {[%clk 0:02:48]}  e6 {[%clk 0:02:57]} 3. Bg5 {[%clk 0:02:47]}  h6 {[%clk 0:02:56]} 4. Bh4 {[%clk 0:02:47]}  c5 {[%clk 0:02:54]} 5. Nbd2 {[%clk 0:02:46]}  cxd4 {[%clk 0:02:50]} 6. Nxd4 {[%clk 0:02:47]}  d5 {[%clk 0:02:47]} 7. e3 {[%clk 0:02:45]}  Be7 {[%clk 0:02:43]} 8. c4 {[%clk 0:02:45]}  O-O {[%clk 0:02:41]} 9. cxd5 {[%clk 0:02:43]}  Qxd5 {[%clk 0:02:40]} 10. Qb3 {[%clk 0:02:36]}  Qa5 {[%clk 0:02:30]} 11. Rd1 {[%clk 0:02:08]}  e5 {[%clk 0:02:21]} 12. Nb5 {[%clk 0:02:04]}  Nc6 {[%clk 0:02:20]} 13. Bc4 {[%clk 0:02:00]}  a6 {[%clk 0:01:48]} 14. Nc3 {[%clk 0:01:58]}  b5 {[%clk 0:01:48]} 15. Be2 {[%clk 0:01:55]}  Be6 {[%clk 0:01:47]} 16. Qc2 {[%clk 0:01:54]}  Nb4 {[%clk 0:01:44]} 17. Qb1 {[%clk 0:01:54]}  Rac8 {[%clk 0:01:32]} 18. a3 {[%clk 0:01:45]}  Nbd5 {[%clk 0:01:23]} 19. Nxd5 {[%clk 0:01:44]}  Bxd5 {[%clk 0:01:23]} 20. O-O {[%clk 0:01:44]}  Rfd8 {[%clk 0:01:17]} 21. Bf3 {[%clk 0:01:39]}  Qa4 {[%clk 0:01:13]} 22. Bxf6 {[%clk 0:01:24]}  Bxf6 {[%clk 0:01:07]} 23. Bxd5 {[%clk 0:01:25]}  Rxd5 {[%clk 0:01:07]} 24. Ne4 {[%clk 0:01:25]}  Rxd1 {[%clk 0:00:56]} 25. Nxf6+ {[%clk 0:01:25]}  gxf6 {[%clk 0:00:56]} 26. Rxd1 {[%clk 0:01:24]}  Qc2 {[%clk 0:00:54]} 27. g4 {[%clk 0:01:16]}  Qxb1 {[%clk 0:00:51]} 28. Rxb1 {[%clk 0:01:17]}  Rc2 {[%clk 0:00:51]} 29. Kg2 {[%clk 0:01:15]}  e4 {[%clk 0:00:49]} 30. Kg3 {[%clk 0:01:15]}  Kf8 {[%clk 0:00:48]} 31. b4 {[%clk 0:01:07]}  Ra2 {[%clk 0:00:44]} 32. Rb3 {[%clk 0:01:03]}  Ke7 {[%clk 0:00:42]} 33. Rc3 {[%clk 0:01:04]}  Kd6 {[%clk 0:00:42]} 34. h3 {[%clk 0:00:53]}  Kd7 {[%clk 0:00:38]} 35. Kg2 {[%clk 0:00:35]}  Rd2 {[%clk 0:00:31]} 36. Rc1 {[%clk 0:00:29]}  Rd3 {[%clk 0:00:29]} 37. Ra1 {[%clk 0:00:30]}  Rb3 {[%clk 0:00:29]} 38. Kg3 {[%clk 0:00:27]}  Ke6 {[%clk 0:00:20]} 39. Kf4 {[%clk 0:00:21]}  Rb2 {[%clk 0:00:20]} 40. Kg3 {[%clk 0:00:18]}  Ke5 {[%clk 0:00:19]} 41. Rc1 {[%clk 0:00:18]}  Rb3 {[%clk 0:00:18]} 42. Ra1 {[%clk 0:00:15]}  f5 {[%clk 0:00:17]} 43. gxf5 {[%clk 0:00:13]}  Kxf5 {[%clk 0:00:18]} 44. Ra2 {[%clk 0:00:11]}  Ke5 {[%clk 0:00:18]} 45. Ra1 {[%clk 0:00:11]}  f5 {[%clk 0:00:18]} 46. Ra2 {[%clk 0:00:11]}  f4+ {[%clk 0:00:18]} 47. Kg4 {[%clk 0:00:10]}  fxe3 {[%clk 0:00:18]} 48. fxe3 {[%clk 0:00:11]}  Rxe3 {[%clk 0:00:19]} 49. h4 {[%clk 0:00:10]}  Rc3 {[%clk 0:00:16]} 50. Kh5 {[%clk 0:00:09]}  Rc6 {[%clk 0:00:16]} 51. Kg4 {[%clk 0:00:05]}  Rf6 {[%clk 0:00:15]} 52. Rc2 {[%clk 0:00:04]}  e3 {[%clk 0:00:15]} 53. Rc5+ {[%clk 0:00:01]}  Kd4 {[%clk 0:00:15]} 54. Rc8 {[%clk 0:00:02]}  e2 {[%clk 0:00:15]} 55. Re8 {[%clk 0:00:02]}  Kd3 {[%clk 0:00:15]} 56. Rd8+ {[%clk 0:00:01]}  Kc2 {[%clk 0:00:15]} 57. Rc8+ {[%clk 0:00:01]}  Kd1 {[%clk 0:00:15]} 58. Rd8+ {[%clk 0:00:02]}  Ke1 {[%clk 0:00:15]} 59. h5 {[%clk 0:00:02]}  Kf1 {[%clk 0:00:15]} 0-1


[Site "https://www.chess.com"]

[Event "Titled Tuesday Blitz October 25 Late 2022"]
[White "Gedgafov, Chamal"]
[Black "Ozdemir, Serhan Berat"]
[WhiteFideId "34130621"]
[BlackFideId "6374611"]
[WhiteElo "2067"]
[BlackElo "2016"]
[Result "1-0"]
[Round "03"]
[TimeControl "180+1"]
[Date "2022.10.26"]
[WhiteClock "0:01:57"]
[BlackClock "0:00:02"]

1. c4 {[%clk 0:02:58]}  Nf6 {[%clk 0:03:00]} 2. g3 {[%clk 0:02:57]}  g6 {[%clk 0:03:00]} 3. Bg2 {[%clk 0:02:57]}  Bg7 {[%clk 0:03:01]} 4. Nc3 {[%clk 0:02:57]}  O-O {[%clk 0:03:01]} 5. e4 {[%clk 0:02:57]}  d6 {[%clk 0:03:01]} 6. Rb1 {[%clk 0:02:57]}  c5 {[%clk 0:02:59]} 7. a3 {[%clk 0:02:57]}  a5 {[%clk 0:02:39]} 8. Nge2 {[%clk 0:02:54]}  Nc6 {[%clk 0:02:39]} 9. O-O {[%clk 0:02:53]}  Be6 {[%clk 0:02:11]} 10. d3 {[%clk 0:02:52]}  Qd7 {[%clk 0:02:07]} 11. Nf4 {[%clk 0:02:52]}  Nd4 {[%clk 0:01:48]} 12. Be3 {[%clk 0:02:51]}  Ng4 {[%clk 0:01:28]} 13. Bxd4 {[%clk 0:02:49]}  Bxd4 {[%clk 0:01:26]} 14. Nxe6 {[%clk 0:02:48]}  Qxe6 {[%clk 0:01:27]} 15. Bh3 {[%clk 0:02:48]}  h5 {[%clk 0:01:24]} 16. Nd5 {[%clk 0:02:47]}  Rad8 {[%clk 0:01:11]} 17. Kg2 {[%clk 0:02:46]}  f5 {[%clk 0:00:52]} 18. exf5 {[%clk 0:02:39]}  Rxf5 {[%clk 0:00:20]} 19. f3 {[%clk 0:02:37]}  Rxd5 {[%clk 0:00:20]} 20. fxg4 {[%clk 0:02:33]}  Re5 {[%clk 0:00:21]} 21. gxh5 {[%clk 0:02:26]}  Re2+ {[%clk 0:00:20]} 22. Kh1 {[%clk 0:02:26]}  Qe3 {[%clk 0:00:10]} 23. Qc1 {[%clk 0:02:03]}  Qxc1 {[%clk 0:00:02]} 24. Rbxc1 {[%clk 0:02:02]}  Bxb2 {[%clk 0:00:01]} 25. Rce1 {[%clk 0:02:01]}  Rxe1 {[%clk 0:00:02]} 26. Rxe1 {[%clk 0:02:02]}  Be5 {[%clk 0:00:02]} 27. hxg6 {[%clk 0:02:00]}  Kg7 {[%clk 0:00:03]} 28. Bf5 {[%clk 0:02:00]}  Rb8 {[%clk 0:00:03]} 29. a4 {[%clk 0:01:59]}  b6 {[%clk 0:00:03]} 30. Kg2 {[%clk 0:01:58]}  Rf8 {[%clk 0:00:03]} 31. Be4 {[%clk 0:01:58]}  Kf6 {[%clk 0:00:03]} 32. Rf1+ {[%clk 0:01:58]}  Kg7 {[%clk 0:00:03]} 33. Rxf8 {[%clk 0:01:58]}  Kxf8 {[%clk 0:00:04]} 34. h4 {[%clk 0:01:59]}  Kg7 {[%clk 0:00:05]} 35. Kf3 {[%clk 0:01:59]}  Kf6 {[%clk 0:00:05]} 36. g4 {[%clk 0:02:00]}  e6 {[%clk 0:00:06]} 37. g5+ {[%clk 0:02:00]}  Kg7 {[%clk 0:00:06]} 38. Kg4 {[%clk 0:02:00]}  Bc3 {[%clk 0:00:06]} 39. h5 {[%clk 0:02:01]}  Kh8 {[%clk 0:00:04]} 40. h6 {[%clk 0:02:01]}  Bd4 {[%clk 0:00:04]} 41. Kh5 {[%clk 0:01:58]}  Kg8 {[%clk 0:00:05]} 42. g7 {[%clk 0:01:59]}  Kf7 {[%clk 0:00:04]} 43. Bh7 {[%clk 0:01:58]}  Bxg7 {[%clk 0:00:04]} 44. hxg7 {[%clk 0:01:56]}  Kxg7 {[%clk 0:00:05]} 45. Kg4 {[%clk 0:01:55]}  Kxh7 {[%clk 0:00:05]} 46. Kh5 {[%clk 0:01:53]}  Kg7 {[%clk 0:00:05]} 47. g6 {[%clk 0:01:53]}  d5 {[%clk 0:00:05]} 48. Kg5 {[%clk 0:01:52]}  dxc4 {[%clk 0:00:03]} 49. dxc4 {[%clk 0:01:53]}  e5 {[%clk 0:00:03]} 50. Kf5 {[%clk 0:01:53]}  e4 {[%clk 0:00:04]} 51. Kxe4 {[%clk 0:01:54]}  Kxg6 {[%clk 0:00:04]} 52. Kd5 {[%clk 0:01:55]}  Kf6 {[%clk 0:00:05]} 53. Kc6 {[%clk 0:01:56]}  Ke5 {[%clk 0:00:06]} 54. Kxb6 {[%clk 0:01:56]}  Kd4 {[%clk 0:00:07]} 55. Kb5 {[%clk 0:01:57]}  Kc3 {[%clk 0:00:02]} 56. Kxc5 {[%clk 0:01:57]}  Kb3 {[%clk 0:00:02]} 57. Kb5 {[%clk 0:01:57]} 1-0


[Site "https://www.chess.com"]